[Event "RUS-ch Men Rapid 2019"]
[Site "Sochi"]
[Date "2019.10.16"]
[Round "6.27"]
[White "Gaydym, Arseniy"]
[Black "Pogromsky, Mikhail"]
[Result "0-1"]
[ECO "B02"]
[WhiteElo "2139"]
[BlackElo "2411"]
[Annotator "NA"]
[PlyCount "56"]
[EventDate "2019.10.15"]
[EventType "swiss"]
[EventCountry "RUS"]
[SourceTitle "playchess.com"]
[Source "ChessBase"]
[SourceQuality "1"]
[TimeControl "900+10"]

1. e4 Nf6 2. Nc3 d5 3. exd5 Nxd5 4. Bc4 c6 5. d4 Bf5 6. Nxd5 cxd5 7. Bd3 Bxd3 8. Qxd3 Nc6 9. Nf3 e6 10. c3 Bd6 11. O-O h6 12. Re1 Qc7 13. Bd2 O-O 14. Re2 b5 15. Rae1 b4 16. Ne5 bxc3 17. Bxc3 Nxe5 18. dxe5 Be7 19. Re3 Rfc8 20. Rg3 Qc4 21. Qf3 Rab8 22. Qh5 Qh4 23. Qf3 Rc4 24. Rh3 Qg4 25. Qd3 Bb4 26. Rg3 Qh4 27. Bxb4 Rbxb4 28. b3 Rc7 0-1

[Event "RUS-ch Men Rapid 2019"]
[Site "Sochi"]
[Date "2019.10.16"]
[Round "6.28"]
[White "Lugovskoy, Maxim"]
[Black "Sysolyatin, Evgeny"]
[Result "1-0"]
[ECO "A45"]
[WhiteElo "2436"]
[BlackElo "2271"]
[Annotator "NA"]
[PlyCount "101"]
[EventDate "2019.10.15"]
[EventType "swiss"]
[EventCountry "RUS"]
[SourceTitle "playchess.com"]
[Source "ChessBase"]
[SourceQuality "1"]
[TimeControl "900+10"]

1. d4 {[%emt 0:00:00]} Nf6 {[%emt 0:01:21]} 2. Nc3 {[%emt 0:00:00]} d5 {[%emt 0:00:05]} 3. Bf4 {[%emt 0:00:03]} e6 {[%emt 0:00:19]} 4. Nb5 {[%emt 0:00:03]} Na6 {[%emt 0:00:15]} 5. e3 {[%emt 0:00:02]} Bb4+ {[%emt 0:00:10]} 6. c3 {[%emt 0:00:27]} Be7 {[%emt 0:00:03]} 7. b4 {[%emt 0:00:14]} O-O {[%emt 0:00:06]} 8. Bd3 {[%emt 0:00:22]} b6 {[%emt 0:00:11]} 9. Nf3 {[%emt 0:00:24]} c5 {[%emt 0:00:02]} 10. bxc5 {[%emt 0:00:31]} bxc5 {[%emt 0:00:03]} 11. a4 {[%emt 0:00:14]} cxd4 {[%emt 0:03:27]} 12. exd4 {[%emt 0:00:08]} Ne4 {[%emt 0:00:07]} 13. O-O {[%emt 0:00:45]} g5 {[%emt 0:05:15]} 14. Bc1 {[%emt 0:00:34]} Nc7 {[%emt 0:01:53]} 15. Ne5 {[%emt 0:00:01]} Nxb5 {[%emt 0:00:40]} 16. axb5 {[%emt 0:00:01]} Bb7 {[%emt 0:00:10]} 17. Qh5 {[%emt 0:00:02]} f6 {[%emt 0:00:22]} 18. Nc6 {[%emt 0:00:44]} Bxc6 {[%emt 0:00:02]} 19. bxc6 {[%emt 0:00:01]} Qe8 {[%emt 0:00:18]} 20. Qh3 {[%emt 0:00:29]} f5 {[%emt 0:00:48]} 21. f3 {[%emt 0:00:25]} Nd6 {[%emt 0:00:30]} 22. Re1 {[%emt 0:00:02]} Qxc6 {[%emt 0:00:06]} 23. Rxe6 {[%emt 0:00:40]} Qxc3 {[%emt 0:00:09]} 24. Rxe7 Rf7 25. Rxf7 {[%emt 0:06:26]} Nxf7 {[%emt 0:00:02]} 26. Bb2 {[%emt 0:00:46]} Qxb2 {[%emt 0:00:37]} 27. Rd1 {[%emt 0:00:06]} Qxd4+ {[%emt 0:00:40]} 28. Kh1 {[%emt 0:00:06]} Qa4 {[%emt 0:00:18]} 29. Rb1 {[%emt 0:00:19]} g4 {[%emt 0:00:35]} 30. Qh5 {[%emt 0:00:29]} gxf3 {[%emt 0:00:07]} 31. Qxf3 {[%emt 0:00:09]} Qg4 {[%emt 0:00:08]} 32. Qxd5 {[%emt 0:00:34]} Rd8 {[%emt 0:00:02]} 33. Qxf5 {[%emt 0:00:09]} Qxf5 {[%emt 0:00:15]} 34. Bxf5 {[%emt 0:00:01]} a5 {[%emt 0:00:06]} 35. h3 {[%emt 0:00:11]} Rd5 {[%emt 0:00:05]} 36. g4 {[%emt 0:00:24]} Re5 {[%emt 0:01:07]} 37. Rb7 {[%emt 0:00:14]} h6 {[%emt 0:00:09]} 38. Ra7 {[%emt 0:01:46]} Ng5 {[%emt 0:00:22]} 39. h4 {[%emt 0:01:11]} Nf3 {[%emt 0:00:01]} 40. Bh7+ {[%emt 0:00:21]} Kh8 {[%emt 0:00:11]} 41. Kg2 {[%emt 0:00:01]} Re3 {[%emt 0:00:24]} 42. h5 {[%emt 0:00:17]} Ng5 {[%emt 0:00:09]} 43. Bf5 {[%emt 0:00:04]} Re5 {[%emt 0:00:01]} 44. Kg3 {[%emt 0:00:37]} Re3+ {[%emt 0:00:03]} 45. Kf4 {[%emt 0:00:09]} Re8 {[%emt 0:00:29]} 46. Rxa5 {[%emt 0:00:03]} Re7 {[%emt 0:00:03]} 47. Ra6 {[%emt 0:00:05]} Nf7 {[%emt 0:00:03]} 48. Be4 {[%emt 0:00:11]} Kg7 {[%emt 0:00:10]} 49. Rg6+ {[%emt 0:00:03]} Kf8 {[%emt 0:00:03]} 50. Bd5 {[%emt 0:00:02]} Ne5 {[%emt 0:00:31]} 51. Rg8# {[%emt 0:00:02]} 1-0

[Event "RUS-ch Men Rapid 2019"]
[Site "Sochi"]
[Date "2019.10.16"]
[Round "6.31"]
[White "Orlinkov, Maxim L."]
[Black "Nazaretyan, Tigran"]
[Result "0-1"]
[ECO "A62"]
[WhiteElo "2297"]
[BlackElo "2297"]
[Annotator "NA"]
[PlyCount "118"]
[EventDate "2019.10.15"]
[EventType "swiss"]
[EventCountry "RUS"]
[SourceTitle "playchess.com"]
[Source "ChessBase"]
[SourceQuality "1"]
[TimeControl "900+10"]

1. d4 {[%emt 0:00:00]} Nf6 {[%emt 0:00:00]} 2. c4 {[%emt 0:00:00]} c5 {[%emt 0:00:11]} 3. d5 {[%emt 0:00:00]} e6 {[%emt 0:00:03]} 4. Nc3 {[%emt 0:00:00]} exd5 {[%emt 0:00:02]} 5. cxd5 {[%emt 0:00:00]} d6 {[%emt 0:00:00]} 6. g3 {[%emt 0:00:00]} g6 {[%emt 0:00:03]} 7. Bg2 {[%emt 0:00:10]} Bg7 {[%emt 0:00:02]} 8. Nf3 {[%emt 0:00:00]} O-O {[%emt 0:00:02]} 9. O-O {[%emt 0:00:00]} a6 {[%emt 0:00:10]} 10. a4 {[%emt 0:00:00]} Nbd7 {[%emt 0:00:06]} 11. Bf4 {[%emt 0:00:00]} Qe7 {[%emt 0:00:02]} 12. h3 {[%emt 0:00:15]} Rb8 {[%emt 0:01:08]} 13. Rb1 {[%emt 0:00:29]} Nh5 {[%emt 0:01:14]} 14. Bg5 {[%emt 0:00:02]} f6 {[%emt 0:00:12]} 15. Bd2 {[%emt 0:00:02]} f5 {[%emt 0:00:14]} 16. Qc1 {[%emt 0:02:05]} Ne5 {[%emt 0:01:01]} 17. b4 {[%emt 0:00:12]} Nxf3+ {[%emt 0:02:15]} 18. exf3 {[%emt 0:01:17]} c4 {[%emt 0:01:15]} 19. Re1 {[%emt 0:01:32]} Qc7 {[%emt 0:00:59]} 20. b5 {[%emt 0:00:40]} Bd7 {[%emt 0:00:36]} 21. b6 {[%emt 0:02:46]} Qc5 {[%emt 0:01:26]} 22. Re7 {[%emt 0:02:30]} Rf7 {[%emt 0:01:01]} 23. Rxf7 {[%emt 0:01:39]} Kxf7 {[%emt 0:00:06]} 24. g4 {[%emt 0:01:18]} Nf6 {[%emt 0:00:35]} 25. Be3 {[%emt 0:01:02]} Qa5 {[%emt 0:00:14]} 26. Qa3 {[%emt 0:02:37]} Ne8 {[%emt 0:02:12]} 27. Rc1 {[%emt 0:00:01]} Rc8 {[%emt 0:00:28]} 28. Bf1 {[%emt 0:00:13]} Kg8 {[%emt 0:00:08]} 29. Rc2 {[%emt 0:00:15]} Be5 {[%emt 0:00:24]} 30. Qc1 {[%emt 0:00:04]} Kh8 {[%emt 0:00:43]} 31. Kg2 {[%emt 0:00:30]} Nf6 {[%emt 0:00:44]} 32. Be2 {[%emt 0:00:24]} Qb4 {[%emt 0:00:41]} 33. f4 {[%emt 0:00:05]} Bxc3 {[%emt 0:00:10]} 34. Rxc3 {[%emt 0:00:01]} Nxd5 {[%emt 0:00:17]} 35. Bd4+ {[%emt 0:00:05]} Kg8 {[%emt 0:00:02]} 36. Bf3 {[%emt 0:00:16]} Nxc3 {[%emt 0:00:09]} 37. Bxc3 {[%emt 0:00:01]} Qxb6 {[%emt 0:00:07]} 38. Bd5+ {[%emt 0:00:07]} Kf8 {[%emt 0:00:03]} 39. Qd2 {[%emt 0:00:11]} Re8 {[%emt 0:00:17]} 40. Bd4 {[%emt 0:00:07]} Qb3 {[%emt 0:00:11]} 41. Bc3 {[%emt 0:00:01]} Qb6 {[%emt 0:00:19]} 42. Bd4 {[%emt 0:00:01]} Qc7 {[%emt 0:00:06]} 43. Bc3 {[%emt 0:00:05]} Bc6 {[%emt 0:00:01]} 44. Kg3 {[%emt 0:00:03]} Bxd5 {[%emt 0:00:08]} 45. Qxd5 {[%emt 0:00:01]} Qc6 {[%emt 0:01:03]} 46. Qd4 {[%emt 0:00:04]} Ke7 {[%emt 0:00:13]} 47. Qg7+ {[%emt 0:00:46]} Kd8 {[%emt 0:00:05]} 48. Qxh7 {[%emt 0:00:07]} fxg4 {[%emt 0:00:03]} 49. hxg4 {[%emt 0:00:07]} Qd5 {[%emt 0:00:35]} 50. Bf6+ {[%emt 0:00:12]} Kc8 {[%emt 0:00:03]} 51. Qxg6 {[%emt 0:00:10]} Qd3+ {[%emt 0:00:04]} 52. Qxd3 cxd3 53. Bc3 {[%emt 0:00:02]} Re2 {[%emt 0:00:09]} 54. g5 {[%emt 0:00:19]} d2 {[%emt 0:00:13]} 55. Bxd2 {[%emt 0:00:01]} Rxd2 {[%emt 0:00:01]} 56. g6 {[%emt 0:00:01]} Rd1 {[%emt 0:00:11]} 57. Kg2 {[%emt 0:00:30]} Re1 {[%emt 0:00:22]} 58. g7 {[%emt 0:00:26]} Re8 {[%emt 0:00:06]} 59. f5 {[%emt 0:00:01]} Kd7 {[%emt 0:00:03]} 0-1

[Event "RUS-ch Men Rapid 2019"]
[Site "Sochi"]
[Date "2019.10.16"]
[Round "6.32"]
[White "Dianov, Alexey"]
[Black "Eraschenkov, Denis"]
[Result "1/2-1/2"]
[ECO "C00"]
[WhiteElo "2158"]
[BlackElo "2382"]
[Annotator "NA"]
[PlyCount "78"]
[EventDate "2019.10.15"]
[EventType "swiss"]
[EventCountry "RUS"]
[SourceTitle "playchess.com"]
[Source "ChessBase"]
[SourceQuality "1"]
[TimeControl "900+10"]

1. e4 e6 2. d3 c5 3. f4 Nc6 4. Nf3 g6 5. g3 Bg7 6. Bg2 Nge7 7. O-O O-O 8. c4 Rb8 9. Nc3 a6 10. a4 d5 11. Kh1 d4 12. Nb1 b5 13. axb5 axb5 14. cxb5 Rxb5 15. Na3 Rb8 16. Nc4 Nb4 17. Ne1 Bb7 18. Nc2 Nec6 19. N2a3 Ba6 20. Qe2 Na5 21. e5 Nxc4 22. Nxc4 Bxc4 23. dxc4 d3 24. Qf2 Nc2 25. Ra6 Rb6 26. Ra8 Qd4 27. Qxd4 Nxd4 28. Rxf8+ Kxf8 29. Rd1 Rb4 30. Be4 Rxc4 31. Bxd3 Rb4 32. Bf1 f6 33. exf6 Bxf6 34. Bh3 Ke7 35. Re1 Kd6 36. Be3 e5 37. Bxd4 Rxd4 38. fxe5+ Bxe5 39. b3 Rd2 1/2-1/2

[Event "RUS-ch Men Rapid 2019"]
[Site "Sochi"]
[Date "2019.10.16"]
[Round "7.2"]
[White "Golubov, Saveliy"]
[Black "Tsydypov, Zhamsaran"]
[Result "1/2-1/2"]
[ECO "A48"]
[WhiteElo "2469"]
[BlackElo "2553"]
[Annotator "RC"]
[PlyCount "77"]
[EventDate "2019.10.15"]
[EventType "swiss"]
[EventCountry "RUS"]
[SourceTitle "playchess.com"]
[Source "ChessBase"]
[SourceQuality "1"]
[TimeControl "900+10"]

1. d4 {[%emt 0:00:00]} Nf6 {[%emt 0:00:00]} 2. Nf3 {[%emt 0:00:00]} g6 {[%emt 0:00:01]} 3. Bf4 {[%emt 0:00:21]} Bg7 {[%emt 0:00:04]} 4. e3 {[%emt 0:00:07]} O-O {[%emt 0:00:11]} 5. Be2 {[%emt 0:00:02]} d5 {[%emt 0:00:25]} 6. c3 {[%emt 0:00:47]} c5 {[%emt 0:00:22]} 7. Nbd2 {[%emt 0:00:09]} b6 {[%emt 0:00:16]} 8. O-O {[%emt 0:00:26]} Nc6 {[%emt 0:00:12]} 9. h3 {[%emt 0:01:04]} Bb7 {[%emt 0:00:06]} 10. a4 {[%emt 0:00:46]} Nd7 {[%emt 0:00:38]} 11. Qb3 {[%emt 0:03:36]} e5 {[%emt 0:00:56]} 12. dxe5 {[%emt 0:00:03]} Ndxe5 {[%emt 0:00:14]} 13. Nxe5 {[%emt 0:00:38]} Bxe5 {[%emt 0:01:00]} 14. Bxe5 {[%emt 0:00:17]} Nxe5 {[%emt 0:00:02]} 15. Nf3 {[%emt 0:00:09]} Nd7 {[%emt 0:01:11]} 16. a5 {[%emt 0:00:43]} Qc7 {[%emt 0:00:01]} 17. axb6 {[%emt 0:01:05]} axb6 {[%emt 0:00:06]} 18. Rfd1 {[%emt 0:00:30]} Nf6 {[%emt 0:00:18]} 19. Nd2 {[%emt 0:01:24]} Bc6 {[%emt 0:00:20]} 20. Qc2 {[%emt 0:01:32]} Rfe8 {[%emt 0:01:01]} 21. Bf3 {[%emt 0:00:38]} b5 {[%emt 0:00:57]} 22. Rxa8 {[%emt 0:01:20]} Bxa8 {[%emt 0:00:12]} 23. Ra1 {[%emt 0:00:06]} Nd7 {[%emt 0:00:42]} 24. Be2 {[%emt 0:00:24]} Qb6 {[%emt 0:00:10]} 25. Qd3 {[%emt 0:01:19]} c4 {[%emt 0:00:59]} 26. Qc2 {[%emt 0:00:32]} Bb7 {[%emt 0:00:02]} 27. Nf3 {[%emt 0:00:21]} Nc5 {[%emt 0:00:25]} 28. Nd4 {[%emt 0:00:02]} b4 {[%emt 0:00:00]} 29. cxb4 {[%emt 0:01:04]} Qxb4 {[%emt 0:00:02]} 30. h4 {[%emt 0:00:21]} Ra8 {[%emt 0:00:17]} 31. Rxa8+ {[%emt 0:00:09]} Bxa8 {[%emt 0:00:02]} 32. Qc1 {[%emt 0:00:11]} Bb7 {[%emt 0:00:08]} 33. h5 {[%emt 0:00:04]} Na4 {[%emt 0:00:22]} 34. Qa1 {[%emt 0:00:03]} h6 {[%emt 0:05:23]} 35. Nc2 {[%emt 0:00:08]} Qb3 {[%emt 0:00:28]} 36. Nd4 {[%emt 0:00:01]} Qb4 {[%emt 0:00:01]} 37. Nc2 {[%emt 0:00:02]} Qb3 {[%emt 0:00:00]} 38. Nd4 {[%emt 0:00:03]} Qb4 {[%emt 0:00:01]} 39. Nc2 {[%emt 0:00:11]} 1/2-1/2

[Event "RUS-ch Men Rapid 2019"]
[Site "Sochi"]
[Date "2019.10.16"]
[Round "7.4"]
[White "Kokarev, Dmitry"]
[Black "Nesterov, Arseniy"]
[Result "1-0"]
[ECO "A11"]
[WhiteElo "2593"]
[BlackElo "2484"]
[Annotator "ChessBase"]
[PlyCount "56"]
[EventDate "2019.10.15"]
[EventType "swiss"]
[EventCountry "RUS"]
[SourceTitle "playchess.com"]
[Source "ChessBase"]
[SourceQuality "1"]
[TimeControl "900+10"]

1. c4 {[%emt 0:00:00]} c6 {[%emt 0:00:00]} 2. Nf3 {[%emt 0:00:00]} d5 {[%emt 0:00:00]} 3. g3 {[%emt 0:00:00]} Nf6 {[%emt 0:00:00]} 4. Bg2 {[%emt 0:00:01]} Bf5 {[%emt 0:00:05]} 5. O-O {[%emt 0:00:18]} e6 {[%emt 0:00:03]} 6. d3 {[%emt 0:00:06]} Be7 {[%emt 0:00:06]} 7. Be3 {[%emt 0:00:05]} Nbd7 {[%emt 0:00:55]} 8. Qb3 {[%emt 0:00:16]} Qb8 {[%emt 0:00:13]} 9. cxd5 {[%emt 0:00:25]} cxd5 {[%emt 0:00:10]} 10. Nc3 {[%emt 0:00:08]} O-O {[%emt 0:00:12]} 11. Rfc1 {[%emt 0:00:03]} h6 {[%emt 0:00:42]} 12. Nb5 {[%emt 0:00:52]} Ng4 {[%emt 0:02:53]} 13. Bf4 {[%emt 0:01:13]} e5 {[%emt 0:00:04]} 14. Nxe5 {[%emt 0:00:07]} Ndxe5 {[%emt 0:02:12]} 15. d4 {[%emt 0:00:10]} a6 {[%emt 0:00:59]} 16. Nc3 {[%emt 0:01:51]} Qa7 {[%emt 0:00:56]} 17. Nxd5 {[%emt 0:00:53]} Bd6 {[%emt 0:02:26]} 18. Bxe5 {[%emt 0:00:13]} Bxe5 {[%emt 0:00:36]} 19. Ne7+ {[%emt 0:00:03]} Kh8 {[%emt 0:00:04]} 20. Nxf5 {[%emt 0:00:03]} g6 {[%emt 0:00:44]} 21. e3 {[%emt 0:01:44]} gxf5 {[%emt 0:02:06]} 22. dxe5 {[%emt 0:00:03]} Rad8 {[%emt 0:00:29]} 23. Rc7 {[%emt 0:00:34]} Rd2 {[%emt 0:00:12]} 24. Qb4 {[%emt 0:00:58]} Rfd8 {[%emt 0:00:25]} 25. Rxb7 {[%emt 0:00:03]} Qa8 {[%emt 0:00:45]} 26. Rf1 {[%emt 0:01:12]} Nxe3 {[%emt 0:01:19]} 27. Qb6 {[%emt 0:00:05]} Ng4 {[%emt 0:00:41]} 28. h3 {[%emt 0:00:12]} Rxf2 {[%emt 0:00:11]} 1-0

[Event "RUS-ch Men Rapid 2019"]
[Site "Sochi"]
[Date "2019.10.16"]
[Round "7.5"]
[White "Popov, Valerij"]
[Black "Apryshko, Gleb"]
[Result "0-1"]
[ECO "A20"]
[WhiteElo "2535"]
[BlackElo "2382"]
[Annotator "RC"]
[PlyCount "71"]
[EventDate "2019.10.15"]
[EventType "swiss"]
[EventCountry "RUS"]
[SourceTitle "playchess.com"]
[Source "ChessBase"]
[SourceQuality "1"]
[TimeControl "900+10"]

1. c4 {[%emt 0:00:00]} e5 {[%emt 0:00:00]} 2. g3 {[%emt 0:00:00]} Nc6 {[%emt 0:00:00]} 3. Nc3 {[%emt 0:00:00]} Bc5 {[%emt 0:00:17]} 4. Bg2 {[%emt 0:00:00]} a6 {[%emt 0:00:07]} 5. e3 {[%emt 0:00:12]} Nge7 {[%emt 0:01:59]} 6. Nge2 {[%emt 0:00:15]} d6 {[%emt 0:00:07]} 7. a3 {[%emt 0:00:35]} Ba7 {[%emt 0:00:53]} 8. b4 {[%emt 0:00:06]} h5 {[%emt 0:00:03]} 9. Bb2 {[%emt 0:00:42]} h4 {[%emt 0:00:07]} 10. d4 {[%emt 0:00:13]} hxg3 {[%emt 0:04:34]} 11. hxg3 {[%emt 0:00:13]} Rxh1+ {[%emt 0:00:02]} 12. Bxh1 {[%emt 0:00:01]} Qd7 {[%emt 0:00:02]} 13. c5 {[%emt 0:05:23]} Qh3 {[%emt 0:03:59]} 14. Bf3 {[%emt 0:00:01]} exd4 {[%emt 0:00:02]} 15. exd4 {[%emt 0:00:08]} dxc5 {[%emt 0:00:09]} 16. Nf4 {[%emt 0:00:43]} Qh2 {[%emt 0:01:01]} 17. Ncd5 {[%emt 0:01:06]} Nxd5 {[%emt 0:00:32]} 18. Nxd5 {[%emt 0:00:01]} Nxd4 {[%emt 0:01:36]} 19. Nxc7+ {[%emt 0:01:24]} Kf8 {[%emt 0:00:05]} 20. Bxd4 {[%emt 0:00:26]} cxd4 {[%emt 0:00:04]} 21. Qe2 {[%emt 0:01:00]} Bh3 {[%emt 0:00:41]} 22. O-O-O {[%emt 0:03:25]} Rc8 {[%emt 0:00:05]} 23. Rh1 {[%emt 0:01:29]} d3 {[%emt 0:00:32]} 24. Qxd3 {[%emt 0:00:17]} Qxf2 {[%emt 0:00:36]} 25. Rxh3 {[%emt 0:00:10]} Rxc7+ {[%emt 0:01:20]} 26. Kb1 {[%emt 0:00:05]} Qe1+ {[%emt 0:00:02]} 27. Bd1 {[%emt 0:00:31]} Ke7 {[%emt 0:00:19]} 28. Rh4 {[%emt 0:00:25]} Qc3 {[%emt 0:00:13]} 29. Re4+ {[%emt 0:00:05]} Kf6 {[%emt 0:00:05]} 30. Qd6+ {[%emt 0:00:12]} Kg5 {[%emt 0:00:17]} 31. Qf4+ {[%emt 0:00:23]} Kg6 {[%emt 0:00:02]} 32. Qg4+ {[%emt 0:00:08]} Kh6 {[%emt 0:00:15]} 33. Qh3+ {[%emt 0:00:11]} Kg6 {[%emt 0:00:07]} 34. Qh5+ {[%emt 0:00:18]} Kf6 {[%emt 0:00:02]} 35. Rf4+ {[%emt 0:00:04]} Ke6 {[%emt 0:00:11]} 36. Qe2+ 0-1

[Event "RUS-ch Men Rapid 2019"]
[Site "Sochi"]
[Date "2019.10.16"]
[Round "7.10"]
[White "Pogromsky, Mikhail"]
[Black "Moiseenko, Vadim"]
[Result "1/2-1/2"]
[ECO "A05"]
[WhiteElo "2411"]
[BlackElo "2532"]
[Annotator "ChessBase"]
[PlyCount "68"]
[EventDate "2019.10.15"]
[EventType "swiss"]
[EventCountry "RUS"]
[SourceTitle "playchess.com"]
[Source "ChessBase"]
[SourceQuality "1"]
[TimeControl "900+10"]

1. Nf3 {[%emt 0:00:00]} Nf6 {[%emt 0:00:00]} 2. c4 {[%emt 0:00:00]} b6 {[%emt 0:00:00]} 3. g3 {[%emt 0:00:04]} Bb7 {[%emt 0:00:00]} 4. Bg2 {[%emt 0:00:01]} g6 {[%emt 0:00:00]} 5. b3 {[%emt 0:00:15]} Bg7 {[%emt 0:00:00]} 6. Bb2 {[%emt 0:00:01]} O-O {[%emt 0:00:00]} 7. O-O {[%emt 0:00:10]} e6 {[%emt 0:00:01]} 8. d4 {[%emt 0:00:30]} d6 {[%emt 0:00:20]} 9. Nc3 {[%emt 0:00:13]} Ne4 {[%emt 0:00:06]} 10. Rc1 {[%emt 0:00:56]} Nd7 {[%emt 0:00:04]} 11. Nxe4 {[%emt 0:01:06]} Bxe4 {[%emt 0:00:02]} 12. Qd2 {[%emt 0:00:13]} a5 {[%emt 0:00:07]} 13. Ne1 {[%emt 0:00:21]} Bxg2 {[%emt 0:00:02]} 14. Kxg2 {[%emt 0:00:58]} Qe7 {[%emt 0:00:07]} 15. Nd3 {[%emt 0:01:00]} c6 {[%emt 0:02:29]} 16. e4 {[%emt 0:00:52]} a4 {[%emt 0:00:46]} 17. Rfe1 {[%emt 0:00:59]} e5 {[%emt 0:00:48]} 18. dxe5 {[%emt 0:00:19]} dxe5 {[%emt 0:00:09]} 19. c5 {[%emt 0:00:52]} bxc5 {[%emt 0:00:20]} 20. Qc3 {[%emt 0:00:27]} Rfb8 {[%emt 0:00:08]} 21. Nxc5 {[%emt 0:00:31]} axb3 {[%emt 0:02:05]} 22. axb3 {[%emt 0:00:12]} Nxc5 {[%emt 0:01:37]} 23. Qxc5 {[%emt 0:00:01]} Qxc5 {[%emt 0:00:13]} 24. Rxc5 {[%emt 0:00:02]} Rxb3 {[%emt 0:00:03]} 25. Bxe5 {[%emt 0:00:05]} Bxe5 {[%emt 0:00:02]} 26. Rxe5 {[%emt 0:00:01]} Rc3 {[%emt 0:00:01]} 27. Re2 {[%emt 0:00:34]} Kf8 {[%emt 0:00:09]} 28. Rd2 {[%emt 0:01:58]} Ra7 {[%emt 0:00:49]} 29. g4 {[%emt 0:00:59]} Kg7 {[%emt 0:02:39]} 30. h4 {[%emt 0:00:33]} h6 {[%emt 0:01:06]} 31. g5 {[%emt 0:00:28]} hxg5 {[%emt 0:00:05]} 32. hxg5 {[%emt 0:00:01]} Rca3 {[%emt 0:00:36]} 33. Rd6 {[%emt 0:00:39]} R3a5 {[%emt 0:00:16]} 34. Rxa5 {[%emt 0:00:02]} Rxa5 1/2-1/2

[Event "RUS-ch Men Rapid 2019"]
[Site "Sochi"]
[Date "2019.10.16"]
[Round "7.11"]
[White "Potapov, Pavel"]
[Black "Sakaev, Konstantin"]
[Result "1/2-1/2"]
[ECO "B22"]
[WhiteElo "2489"]
[BlackElo "2595"]
[Annotator "ChessBase"]
[PlyCount "44"]
[EventDate "2019.10.15"]
[EventType "swiss"]
[EventCountry "RUS"]
[SourceTitle "playchess.com"]
[Source "ChessBase"]
[SourceQuality "1"]
[TimeControl "900+10"]

1. e4 {[%emt 0:00:00]} c5 {[%emt 0:00:00]} 2. c3 {[%emt 0:00:00]} d5 {[%emt 0:00:11]} 3. exd5 {[%emt 0:00:00]} Qxd5 {[%emt 0:00:02]} 4. d4 {[%emt 0:00:00]} Nf6 {[%emt 0:00:02]} 5. Nf3 {[%emt 0:00:01]} e6 {[%emt 0:00:07]} 6. Be3 {[%emt 0:00:07]} cxd4 {[%emt 0:00:08]} 7. cxd4 {[%emt 0:00:02]} Bb4+ {[%emt 0:00:56]} 8. Nc3 {[%emt 0:00:06]} O-O {[%emt 0:00:03]} 9. Bd3 {[%emt 0:00:15]} b6 {[%emt 0:00:07]} 10. O-O {[%emt 0:00:23]} Bxc3 {[%emt 0:00:02]} 11. bxc3 {[%emt 0:00:03]} Bb7 {[%emt 0:00:17]} 12. c4 {[%emt 0:01:46]} Qd6 {[%emt 0:00:30]} 13. Qe2 {[%emt 0:00:57]} Nc6 {[%emt 0:02:35]} 14. Rfd1 {[%emt 0:00:39]} h6 {[%emt 0:00:06]} 15. Rac1 {[%emt 0:00:23]} Rfd8 {[%emt 0:00:09]} 16. Bb1 {[%emt 0:02:05]} Rac8 {[%emt 0:00:31]} 17. h3 {[%emt 0:01:13]} Ba6 {[%emt 0:02:05]} 18. Qe1 {[%emt 0:01:53]} Qb4 {[%emt 0:02:28]} 19. Qxb4 {[%emt 0:00:28]} Nxb4 {[%emt 0:00:01]} 20. Ne5 {[%emt 0:00:03]} Nc6 {[%emt 0:00:03]} 21. Nxc6 {[%emt 0:01:04]} Rxc6 {[%emt 0:00:01]} 22. c5 {[%emt 0:00:09]} Nd5 {[%emt 0:01:10]} 1/2-1/2

[Event "RUS-ch Men Rapid 2019"]
[Site "Sochi"]
[Date "2019.10.16"]
[Round "7.17"]
[White "Triapishko, Alexandr"]
[Black "Linker, Mikhail"]
[Result "1-0"]
[ECO "A05"]
[WhiteElo "2514"]
[BlackElo "2269"]
[Annotator "ChessBase"]
[PlyCount "45"]
[EventDate "2019.10.15"]
[EventType "swiss"]
[EventCountry "RUS"]
[SourceTitle "playchess.com"]
[Source "ChessBase"]
[SourceQuality "1"]
[TimeControl "900+10"]

1. Nf3 {[%emt 0:00:20]} Nf6 {[%emt 0:00:00]} 2. g3 {[%emt 0:00:12]} g6 {[%emt 0:00:00]} 3. b3 {[%emt 0:00:28]} Bg7 {[%emt 0:00:03]} 4. Bb2 {[%emt 0:00:01]} d5 {[%emt 0:00:16]} 5. c4 {[%emt 0:00:25]} O-O {[%emt 0:00:47]} 6. cxd5 {[%emt 0:00:33]} Qxd5 {[%emt 0:01:04]} 7. Bg2 {[%emt 0:00:27]} c5 {[%emt 0:00:32]} 8. Nc3 {[%emt 0:00:31]} Qh5 {[%emt 0:00:35]} 9. h3 {[%emt 0:00:59]} Nc6 {[%emt 0:01:16]} 10. g4 {[%emt 0:00:36]} Nxg4 {[%emt 0:00:33]} 11. hxg4 {[%emt 0:00:05]} Qxg4 {[%emt 0:00:01]} 12. Kf1 {[%emt 0:01:16]} Rd8 {[%emt 0:02:46]} 13. Rh4 {[%emt 0:02:40]} Qd7 {[%emt 0:00:19]} 14. d3 {[%emt 0:02:57]} b6 {[%emt 0:01:07]} 15. Qd2 {[%emt 0:00:07]} Bb7 {[%emt 0:00:07]} 16. Ne4 {[%emt 0:02:42]} e5 {[%emt 0:01:10]} 17. Qg5 {[%emt 0:00:46]} Qe6 {[%emt 0:00:04]} 18. Rh3 {[%emt 0:01:20]} f5 {[%emt 0:00:53]} 19. Qh4 {[%emt 0:00:07]} h6 {[%emt 0:00:04]} 20. Neg5 {[%emt 0:00:25]} Qe7 {[%emt 0:00:01]} 21. Qc4+ {[%emt 0:00:05]} Kh8 {[%emt 0:00:40]} 22. Nf7+ {[%emt 0:00:04]} Kh7 {[%emt 0:00:02]} 23. N3g5+ {[%emt 0:00:05] Nb8} 1-0